bitfinex-derivatives/quotes_ETHF0:USTF0_20251126
["timestamp","ask_amount","ask_price","bid_price","bid_amount"]
[1764136836084,1.31272287,2944.1,2944.0,0.75019606]
[1764136836885,0.85022287,2944.1,2944.0,0.75019606]
[1764136837478,1.29822287,2944.1,2944.0,0.75019606]
[1764136837674,0.91440028,2944.5,2944.0,0.75019606]
[1764136837875,0.448,2944.5,2944.4,0.4636]
[1764136838073,1.29903117,2944.5,2944.4,0.4636]
[1764136838886,0.85103117,2944.5,2944.4,0.4636]
[1764136839283,1.81999785,2945.1,2944.4,0.4636]
[1764136839284,0.00509606,2945.1,2945.0,0.1322]
[1764136839478,0.448,2945.1,2945.0,0.1322]
[1764136839686,0.2819,2945.0,2944.3,2.41909529]
[1764136839884,0.2819,2945.0,2944.2,2.41909529]
[1764136840286,0.28516514,2945.0,2944.2,2.41909529]
[1764136840594,0.00509606,2944.9,2944.2,2.41909529]
[1764136841390,0.00509606,2944.9,2944.1,1.79645575]
[1764136842189,0.00509606,2944.9,2944.1,1.166]
[1764136843288,0.2819,2944.5,2944.1,1.166]
[1764136843489,0.448,2944.2,2944.1,1.2982]
[1764136843995,0.2819,2944.5,2944.4,0.1322]
[1764136844800,0.7299,2944.5,2944.4,0.1322]
[1764136845200,0.7299,2944.5,2944.1,1.166]
[1764136845397,0.448,2944.2,2944.1,1.166]
[1764136845703,0.448,2944.1,2944.0,0.00509606]
[1764136849606,0.2819,2944.5,2944.0,0.13729606]
[1764136850498,0.448,2944.1,2944.0,0.00509606]
[1764136850705,0.448,2944.1,2944.0,0.13729606]
[1764136855503,0.2819,2944.5,2944.0,0.13729606]
[1764136855900,0.7299,2944.5,2944.4,0.1322]
[1764136856302,1.57220645,2944.5,2944.4,0.1322]
[1764136856607,1.57220645,2944.5,2944.0,0.00509606]
[1764136856807,0.7299,2944.5,2944.0,0.00509606]
[1764136857511,0.7299,2944.5,2944.4,0.1322]
[1764136857912,0.2819,2944.5,2944.4,0.1322]
[1764136858313,0.7299,2944.5,2944.4,0.1322]
[1764136859705,0.2819,2944.5,2944.4,0.1322]
[1764136859904,0.7299,2944.5,2944.1,0.1699]
[1764136860411,0.448,2944.2,2944.1,0.3021]
[1764136860705,0.2819,2944.5,2944.0,0.00509606]
[1764136860706,0.448,2944.1,2944.0,0.00509606]
[1764136863705,0.448,2944.1,2944.0,0.13729606]
[1764136864113,0.7471,2943.5,2943.4,2.41909529]
[1764136864309,0.274,2944.0,2943.4,0.1374]
[1764136864510,0.7471,2944.0,2943.9,0.145]
[1764136865218,0.4498,2943.8,2943.7,0.14999606]
[1764136866122,0.7238,2944.0,2943.9,0.1449]
[1764136866509,0.7238,2944.0,2943.7,0.00509606]
[1764136866710,0.7238,2944.0,2943.7,0.14999606]
[1764136866711,0.4498,2943.8,2943.7,0.14999606]
[1764136866918,0.4498,2943.8,2943.7,0.00509606]
[1764136869320,0.4498,2943.1,2943.0,0.00328192]
[1764136869520,0.4498,2943.1,2943.0,0.15328192]
[1764136869720,0.2712,2943.5,2943.0,0.15328192]
[1764136869914,0.2712,2943.5,2943.4,0.15]
[1764136870111,0.721,2943.5,2943.4,0.15]
[1764136870313,0.2712,2943.5,2943.4,0.15]
[1764136870518,0.2712,2943.5,2943.4,0.78045575]
[1764136871119,0.2712,2943.5,2943.4,0.15]
[1764136871419,0.721,2943.5,2943.4,0.15]
[1764136871915,0.2712,2943.5,2943.4,0.15]
[1764136872921,0.00509606,2943.7,2943.4,0.78045575]
[1764136873114,0.00509606,2943.7,2943.6,0.15]
[1764136873421,0.45489606,2943.7,2943.6,0.15]
[1764136873816,0.4498,2943.4,2943.2,2.59415135]
[1764136874018,0.4498,2943.4,2943.3,0.15]
[1764136875122,0.4498,2943.3,2943.2,0.00509606]
[1764136876719,0.721,2943.5,2943.4,0.15]
[1764136876924,0.2712,2943.5,2943.4,0.15]
[1764136877123,0.721,2943.5,2943.4,0.15]
[1764136877625,0.721,2943.5,2943.2,0.00509606]
[1764136878727,0.4498,2943.3,2943.2,0.00509606]
[1764136879528,0.4498,2943.3,2943.2,0.15509606]
[1764136880130,0.721,2943.5,2943.4,0.15]
[1764136880528,0.4498,2943.3,2943.2,0.00509606]
[1764136881130,0.721,2943.5,2943.4,0.15]
[1764136882427,0.4498,2943.3,2943.2,0.15509606]
[1764136882630,0.2712,2943.5,2943.2,0.80169265]
[1764136884328,0.4498,2943.3,2943.2,0.80169265]
[1764136884935,0.721,2943.5,2943.4,0.15]
[1764136885235,0.2712,2943.5,2943.4,0.15]
[1764136885732,0.721,2943.5,2943.4,0.15]
[1764136886130,0.2712,2943.5,2943.3,0.16995]
[1764136886334,0.2712,2943.5,2943.2,0.00509606]
[1764136886335,0.4498,2943.3,2943.2,0.00509606]
[1764136893237,0.4498,2943.1,2943.0,0.00328192]
[1764136895040,1.29330659,2943.1,2943.0,0.00328192]
[1764136895435,0.4724,2942.4,2942.3,2.78185866]
[1764136896437,0.47564123,2942.4,2942.3,2.78591121]
[1764136897344,0.47564123,2942.4,2942.3,0.97925914]
[1764136897539,0.00324123,2942.4,2942.3,0.97925914]
[1764136898649,0.47564123,2942.4,2942.3,0.97925914]
[1764136899148,0.47564123,2942.4,2942.3,0.82065914]
[1764136899453,0.47564123,2942.4,2942.3,0.97925914]
[1764136902949,0.00324123,2942.4,2942.3,0.33266255]
[1764136903145,0.00324123,2942.4,2942.3,0.97925914]
[1764136903448,0.7594,2943.0,2942.9,0.1586]
[1764136903650,0.4724,2942.9,2942.8,0.16998]
[1764136904341,0.47621558,2942.9,2942.8,0.16998]
[1764136906255,0.4724,2942.6,2942.5,0.64659659]
[1764136907056,0.4724,2942.4,2942.3,2.59315784]
[1764136907355,0.4724,2942.4,2942.3,0.33266255]
[1764136907559,0.7594,2942.5,2942.4,0.1586]
[1764136907742,0.4724,2942.4,2942.3,0.17406255]
[1764136907946,0.7594,2942.5,2942.4,0.1586]
[1764136908156,0.287,2942.5,2942.4,0.1586]
[1764136908660,0.287,2942.5,2942.4,0.3286]
[1764136909557,0.7594,2942.5,2942.4,0.3286]
[1764136914258,0.287,2942.5,2942.4,0.3286]
[1764136914460,0.287,2942.5,2942.4,2.74769529]
[1764136914759,0.7594,2942.5,2942.4,2.74769529]
[1764136916466,0.287,2942.5,2942.4,2.74769529]
[1764136918259,0.287,2942.5,2942.4,0.3286]
[1764136918567,0.7594,2942.5,2942.4,0.97519659]
[1764136919864,0.287,2942.5,2942.4,0.97519659]
[1764136920260,0.00381558,2942.9,2942.8,0.1586]
[1764136920466,0.00381558,2942.9,2942.8,0.80519659]
[1764136921171,0.00381558,2942.9,2942.8,3.41517925]
[1764136921472,0.7436,2943.5,2943.4,0.1586]
[1764136921771,0.7436,2943.5,2943.4,0.80519659]
[1764136921960,0.274,2944.0,2943.6,0.43]
[1764136922157,0.7295,2944.0,2943.9,1.07659659]
[1764136922367,0.287,2944.5,2943.9,1.07659659]
[1764136922569,0.4555,2944.4,2944.3,1.07659659]
[1764136923167,0.00509606,2944.6,2944.5,0.43]
[1764136923367,0.00509606,2944.6,2944.5,1.07659659]
[1764136923560,0.7425,2945.0,2944.9,0.43]
[1764136923765,0.7425,2945.0,2944.9,1.07659659]
[1764136924167,0.74603008,2945.0,2944.9,1.08052067]
[1764136924672,0.74603008,2945.0,2944.9,0.43392408]
[1764136924864,0.74603008,2945.0,2944.9,0.00392408]
[1764136930376,0.4851,2944.4,2944.3,2.186]
[1764136931475,0.4851,2944.4,2944.3,2.18883081]
[1764136931676,0.4851,2944.4,2944.3,2.62243081]
[1764136931873,0.29053008,2945.0,2944.5,0.16988]
[1764136932071,0.29053008,2945.0,2944.9,0.4336]
[1764136933872,0.77563008,2945.0,2944.9,0.4336]
[1764136936176,0.77563008,2945.0,2944.7,0.16987]
[1764136936683,0.4851,2944.8,2944.7,0.60347]
[1764136937381,0.29053008,2945.0,2944.7,0.60347]
[1764136938184,0.4851,2944.8,2944.7,0.60347]
[1764136938682,0.4851,2944.8,2944.7,0.16987]
[1764136940581,0.4851,2944.4,2944.3,2.18883081]
[1764136940782,0.4851,2944.4,2944.3,2.62243081]
[1764136941179,0.4851,2944.4,2944.3,2.79232081]
[1764136942885,0.4851,2944.4,2944.3,2.35872081]
[1764136943088,0.2706,2944.5,2943.5,0.2896]
[1764136943387,0.2706,2944.5,2943.8,0.16992]
[1764136943588,0.29053008,2945.0,2944.0,0.45951]
[1764136943781,0.29053008,2945.0,2944.0,0.2896]
[1764136943981,0.29053008,2945.0,2944.3,0.16989]
[1764136946794,0.29053008,2945.0,2944.5,0.2896]
[1764136947094,0.48863008,2945.0,2944.9,0.4706]
[1764136948695,0.48863008,2945.0,2944.9,0.64046]
[1764136948696,0.00353008,2945.0,2944.9,0.64046]
[1764136949587,0.48863008,2945.0,2944.9,0.64046]
[1764136950893,0.00353008,2945.0,2944.9,0.64046]
[1764136952799,0.48863008,2945.0,2944.9,0.64046]
[1764136959600,0.77763008,2945.0,2944.9,0.16986]
[1764136960695,0.4626,2944.6,2944.5,0.753]
[1764136960895,0.4626,2944.6,2944.5,0.92288]
[1764136961495,0.4626,2944.6,2944.5,0.91758]
[1764136963606,0.4626,2944.6,2944.5,0.16988]
[1764136965799,0.4626,2944.3,2944.2,0.00509606]
[1764136972605,0.4626,2944.1,2944.0,0.00386574]
[1764136972801,0.2202,2944.5,2943.4,12.228]
[1764136972802,0.7332,2943.5,2943.4,12.228]
[1764136973304,0.4626,2943.4,2943.3,0.16995]
[1764136973709,0.4626,2943.4,2943.3,0.17362089]
[1764136974109,0.4626,2943.4,2943.3,0.00367089]
[1764136975413,0.4626,2942.7,2942.6,0.16999]
[1764136975611,0.4626,2942.7,2942.6,0.63339]
[1764136976408,0.46690596,2942.7,2942.6,0.63657581]
[1764136976709,0.46690596,2942.7,2942.6,0.17317581]
[1764136977110,0.00509606,2943.6,2942.8,0.16998]
[1764136977306,0.00509606,2943.6,2943.0,0.91423194]
[1764136977713,0.46769606,2943.6,2943.5,0.7477]
[1764136978104,0.47152176,2943.6,2943.5,0.4634]
[1764136978311,0.47152176,2943.6,2943.1,0.16996]
[1764136980113,0.47152176,2943.6,2943.5,0.4634]
[1764136980310,0.00892176,2943.6,2943.5,0.7477]
[1764136980514,0.00892176,2943.6,2943.3,1.09333194]
[1764136980515,0.4626,2943.4,2943.3,1.09333194]
[1764136980718,0.4626,2943.4,2943.3,0.4634]
[1764136981015,0.00892176,2943.6,2943.5,0.7477]
[1764136981805,0.47152176,2943.6,2943.5,0.7477]
[1764136983508,0.00892176,2943.6,2943.5,0.7477]
[1764136984214,0.45542176,2943.6,2943.5,0.7477]
[1764136984615,0.00892176,2943.6,2943.5,0.7477]
[1764136985715,0.00892176,2943.6,2943.5,0.91764]
[1764136988423,0.48752176,2943.6,2943.5,0.91764]
[1764136988624,0.00892176,2943.6,2943.5,0.91764]
[1764136990116,0.48752176,2943.6,2943.5,0.63334]
[1764136990426,0.48752176,2943.6,2943.5,0.16994]
[1764136991020,0.48752176,2943.6,2943.5,0.64204]
[1764136992522,0.00892176,2943.6,2943.5,0.92694]
[1764136994827,0.2202,2944.5,2943.7,0.16993]
[1764136995029,0.91243117,2944.9,2944.3,0.4721]
[1764136995233,0.84096807,2944.8,2944.3,0.4721]
[1764136995424,0.289,2945.0,2944.3,0.4721]
[1764136995626,0.84115739,2944.9,2944.3,0.4721]
[1764136995832,0.84115739,2944.8,2944.3,0.47719606]
[1764136996035,0.00787504,2944.9,2944.3,0.47719606]
[1764136996221,0.4786,2944.8,2944.7,0.4721]
[1764136996420,0.4786,2944.8,2944.7,0.47585988]
[1764136997230,0.4786,2944.8,2944.7,0.00375988]
[1764136997837,1.31939594,2944.8,2944.7,0.00375988]
[1764136998047,0.4786,2944.4,2944.3,0.00509606]
[1764136999246,0.4786,2944.4,2944.3,0.00841398]
[1764136999450,0.4786,2944.4,2944.3,0.48051398]
[1764137000148,0.00787504,2944.9,2944.3,0.48051398]
[1764137000541,0.00787504,2944.9,2944.5,0.2849]
[1764137001143,0.00787504,2944.9,2944.8,0.4721]
[1764137001542,0.48647504,2944.9,2944.8,0.4721]
[1764137002141,0.4786,2944.8,2944.7,0.16987]
[1764137002348,0.00787504,2944.9,2944.8,0.4721]
[1764137002536,0.00787504,2944.9,2944.8,0.64197]
[1764137004143,0.48647504,2944.9,2944.8,0.64197]
[1764137007349,0.00787504,2944.9,2944.8,0.64197]
[1764137008546,0.48647504,2944.9,2944.8,0.16987]
[1764137009147,0.48647504,2944.9,2944.8,0.64197]
[1764137009541,0.00787504,2944.9,2944.8,0.64197]
[1764137010755,1.18613117,2946.0,2945.0,0.16985]
[1764137011050,0.2202,2946.5,2945.6,0.16982]
[1764137011752,0.00509606,2946.3,2945.6,0.16982]
[1764137012356,0.48369606,2946.3,2946.2,0.4721]
[1764137013151,0.4786,2946.1,2946.0,0.00509606]
[1764137013751,0.4786,2946.1,2946.0,0.76209606]
[1764137016859,0.00509606,2946.3,2946.2,0.4575]
[1764137017955,0.49389606,2946.3,2946.2,0.4575]
[1764137020156,0.4888,2946.1,2946.0,0.00509606]
[1764137020460,0.00509606,2946.3,2946.2,0.4575]
[1764137021863,0.49389606,2946.3,2946.2,0.4575]
[1764137022956,0.00413456,2946.5,2946.4,0.4575]
[1764137023158,0.2786,2947.5,2946.5,0.2688]
[1764137023357,0.2737,2948.0,2946.7,0.93030879]
[1764137023555,0.83677391,2947.9,2946.7,0.93030879]
[1764137023871,0.2737,2948.0,2947.0,0.2688]
[1764137024072,0.00509606,2947.8,2947.0,0.2688]
[1764137024366,0.00926277,2947.8,2947.0,0.2688]
[1764137024568,0.00926277,2947.8,2947.0,0.43854]
[1764137025065,0.00926277,2947.8,2947.1,0.16973]
[1764137025258,0.49806277,2947.8,2947.7,0.4575]
[1764137025866,0.49806277,2947.8,2947.3,0.62722]
[1764137025867,0.4888,2947.4,2947.3,0.62722]
[1764137026069,0.90911802,2948.7,2947.9,0.16968]
[1764137026261,0.90911802,2949.4,2948.5,0.7263]
[1764137026465,0.83502256,2949.3,2948.5,0.7263]
[1764137026662,0.83502256,2949.2,2948.5,0.7263]
[1764137026869,0.2786,2949.5,2948.5,0.7263]
[1764137027161,0.00508656,2949.3,2948.7,0.00508656]
[1764137029766,0.4888,2948.8,2948.7,0.00508656]
[1764137031270,0.00508656,2949.3,2948.7,0.46258656]
[1764137032672,0.4888,2948.8,2948.7,0.46258656]
[1764137033070,0.4888,2948.8,2948.7,0.00508656]
[1764137035074,0.4888,2948.6,2948.5,0.00291921]
[1764137035374,0.4888,2947.6,2947.5,0.7263]
[1764137035775,0.4888,2947.6,2947.5,0.4575]
[1764137035966,0.4888,2947.4,2947.3,13.0455]
[1764137036163,0.4888,2947.4,2947.3,0.00372541]
[1764137036164,0.49278045,2947.4,2947.3,0.00372541]
[1764137037371,0.4888,2947.2,2945.4,0.16983]
[1764137037574,0.83255789,2947.1,2945.5,0.43862]
[1764137037773,0.00398045,2947.4,2946.0,0.16979]
[1764137037974,0.8324919,2947.3,2946.0,0.43859]
[1764137038167,0.00398045,2947.4,2946.1,0.16979]
[1764137038373,0.00398045,2947.4,2946.5,0.27388656]
[1764137039272,0.00398045,2947.4,2946.5,0.44365656]
[1764137040370,0.00398045,2947.4,2947.3,0.4575]
[1764137042178,0.00508656,2947.6,2947.5,0.7263]
[1764137043177,0.00756609,2947.6,2947.5,0.7263]
[1764137043680,0.00756609,2947.6,2947.0,0.2688]
[1764137046469,0.00756609,2947.6,2947.5,0.4867]
[1764137046777,0.00756609,2947.6,2947.5,0.759]
[1764137047773,0.90911802,2948.4,2947.5,0.92871]
[1764137047979,0.90911802,2948.7,2947.5,0.92871]
[1764137048269,0.835537,2948.6,2947.7,0.1697]
[1764137048473,1.14691802,2949.0,2947.7,0.1697]
[1764137048676,0.8357423,2948.9,2947.7,0.1697]
[1764137048874,0.00508656,2948.6,2948.0,0.27738656]
[1764137055383,0.46558656,2948.6,2948.5,0.7392]
[1764137055584,1.30328618,2948.6,2948.5,0.74177857]
[1764137056384,1.30328618,2948.6,2948.5,0.00257857]
[1764137057584,1.30328618,2948.6,2948.5,0.46947857]
[1764137058587,1.30328618,2948.6,2948.5,0.74177857]
[1764137062984,0.84278618,2948.6,2948.5,0.74177857]
[1764137063186,1.30432046,2948.6,2948.5,0.74177857]
[1764137063594,1.30432046,2948.6,2948.5,0.00257857]
[1764137067203,0.4605,2948.1,2948.0,0.00508656]
[1764137067396,0.4605,2948.1,2948.0,0.74428656]
[1764137068201,0.4605,2948.1,2948.0,0.74802632]
[1764137069809,1.30089365,2948.1,2948.0,0.00882632]
[1764137070311,1.30089365,2948.1,2948.0,0.47572632]
[1764137070699,1.30089365,2948.1,2948.0,0.00882632]
[1764137073004,0.2736,2948.0,2947.0,0.3928]
[1764137073203,1.11399365,2948.0,2947.0,0.3928]
[1764137073507,0.84039365,2947.9,2947.0,0.3928]
[1764137074005,0.84039365,2947.9,2947.2,0.00508656]
[1764137075214,0.2736,2948.0,2947.2,0.00508656]
[1764137076810,0.90911802,2948.3,2947.2,0.00508656]
[1764137077012,1.74997829,2948.3,2947.2,0.00508656]
[1764137077201,0.84086027,2948.2,2947.2,0.00508656]
[1764137077401,0.84086027,2948.1,2948.0,0.7398]
[1764137077609,1.15921802,2948.5,2948.0,0.7398]
[1764137077808,0.84086855,2948.4,2948.0,0.7398]
[1764137078011,0.4861,2948.1,2948.0,0.7398]
[1764137078806,0.4861,2948.5,2948.4,0.4628]
[1764137079114,1.32690289,2948.5,2948.4,0.4628]
[1764137080013,0.00508656,2948.6,2948.5,0.7398]
[1764137081408,0.49118656,2948.6,2948.0,0.277]
[1764137081607,0.4861,2948.1,2948.0,0.4628]
[1764137081807,0.2501,2948.5,2948.0,0.7398]
[1764137082405,0.4861,2948.1,2948.0,0.7398]
[1764137086008,0.4861,2948.1,2947.5,0.277]
[1764137086615,0.4861,2948.1,2948.0,0.7398]
[1764137087306,0.00508656,2948.6,2948.5,0.7398]
[1764137089309,0.49118656,2948.6,2948.5,0.7398]
[1764137089509,0.49118656,2948.6,2948.5,0.4628]
[1764137089714,0.49118656,2948.6,2948.5,0.7398]
[1764137091504,0.4861,2948.4,2948.3,0.4628]
[1764137092211,0.4861,2948.4,2948.0,0.277]
[1764137092212,0.4861,2948.1,2948.0,0.7398]
[1764137092612,0.4861,2948.1,2948.0,0.4628]
[1764137092917,0.2501,2948.5,2948.0,0.7398]
[1764137093117,0.4861,2948.1,2948.0,0.7398]
[1764137095019,0.00508656,2948.6,2948.0,0.7398]
[1764137095209,1.32614677,2948.5,2948.4,0.4628]
[1764137095415,1.32614677,2948.5,2948.0,0.277]
[1764137095615,0.4861,2948.5,2948.0,0.277]
[1764137096312,0.7362,2948.5,2948.0,0.277]
[1764137096518,0.4861,2948.1,2948.0,0.7398]
[1764137097218,0.2501,2948.5,2948.0,0.7398]
[1764137097420,0.84010443,2948.4,2948.0,0.7398]
[1764137097718,0.2501,2948.5,2948.0,0.7398]
[1764137097910,0.84010443,2948.4,2948.0,0.7398]
[1764137098112,0.2501,2948.5,2948.0,0.7398]
[1764137098311,0.84010443,2948.4,2948.0,0.7398]
[1764137098613,0.4861,2948.1,2948.0,0.7398]
[1764137098814,0.4861,2948.1,2948.0,0.4628]
[1764137099117,0.4861,2948.1,2948.0,0.7398]
[1764137101022,0.2501,2948.5,2948.0,0.7398]
[1764137101221,0.84008685,2948.4,2948.0,0.7398]
[1764137101423,0.2501,2948.5,2948.0,0.7398]
[1764137101617,0.00508656,2948.6,2948.0,0.7398]
[1764137101618,1.32623333,2948.4,2948.3,0.4628]
[1764137101920,1.32623333,2948.4,2948.0,0.277]
[1764137101921,0.48008656,2948.6,2948.5,0.732]
[1764137102118,1.32015616,2948.6,2948.5,0.732]
[1764137102710,1.32015616,2948.6,2948.0,0.44668]
[1764137102924,0.4525,2948.1,2948.0,0.7437]
[1764137103622,0.45758656,2948.6,2948.5,0.4667]
[1764137103823,1.29791679,2948.6,2948.5,0.4667]
[1764137106421,0.84541679,2948.6,2948.5,0.7517]
[1764137106721,0.00433507,2948.9,2948.8,0.66204]
[1764137106920,0.90911802,2949.7,2948.8,0.66204]
[1764137107328,0.49,2948.9,2948.8,0.4924]
[1764137107728,0.49508656,2949.1,2949.0,0.7774]
[1764137107932,0.00946465,2949.1,2949.0,0.7774]
[1764137112733,0.2744,2950.0,2949.0,0.94702]
[1764137112925,0.83869276,2949.9,2949.0,0.94702]
[1764137113124,0.2744,2950.0,2949.0,0.94702]
[1764137113326,0.83834042,2949.9,2949.0,0.94702]
[1764137113527,0.2744,2950.0,2949.0,0.94702]
[1764137113728,0.00508656,2949.8,2949.0,0.94702]
[1764137114329,0.00508656,2949.8,2949.7,0.4924]
[1764137114535,0.00508656,2949.8,2949.7,0.49567336]
[1764137117135,0.49508656,2949.8,2949.7,0.49567336]
[1764137117328,0.49508656,2949.8,2949.7,0.00327336]
[1764137118332,0.49508656,2949.8,2949.7,0.49567336]
[1764137118529,0.49508656,2949.8,2949.7,0.00327336]
[1764137121438,0.00508656,2949.8,2949.7,0.49567336]
[1764137123926,0.49508656,2949.8,2949.7,0.49567336]
[1764137124130,0.00508656,2949.8,2949.7,0.49567336]
[1764137125537,0.16953,2950.7,2950.0,0.285]
[1764137125732,0.83632494,2950.6,2950.0,0.285]
[1764137126032,0.16953,2950.7,2950.0,0.285]
[1764137126232,0.83632499,2950.6,2950.0,0.285]
[1764137126542,0.00843061,2950.6,2950.0,0.285]
[1764137126840,0.2495,2950.5,2950.0,0.285]
[1764137127241,0.00843061,2950.6,2950.0,0.285]
[1764137128531,0.2495,2950.5,2950.0,0.285]
[1764137129845,0.00843061,2950.6,2950.0,0.285]
[1764137130540,0.49843061,2950.6,2950.5,0.7774]
[1764137133750,0.49843061,2950.6,2950.5,0.4924]
[1764137135049,0.49,2950.4,2950.3,0.00508656]
[1764137135552,0.49,2950.4,2950.3,0.46148656]
[1764137135748,0.49,2950.4,2950.3,0.00508656]
[1764137136047,0.49,2950.4,2950.3,0.46148656]
[1764137137247,0.49833061,2950.6,2950.5,0.4564]
[1764137137643,1.33763497,2950.6,2950.5,0.4564]
[1764137138046,1.33763497,2950.6,2950.5,0.7291]
[1764137138253,1.33763497,2950.6,2950.5,0.4564]
[1764137138554,0.84773497,2950.6,2950.3,0.46148656]
[1764137138756,1.32920436,2950.5,2950.4,0.4564]
[1764137139152,0.4899,2950.4,2950.3,0.00508656]
[1764137139349,1.32955122,2950.4,2950.3,0.00508656]
[1764137140452,0.83965122,2950.4,2950.3,0.46148656]
[1764137140653,0.4899,2950.4,2950.3,0.46148656]
[1764137140961,0.4899,2950.4,2950.3,0.00508656]
[1764137141156,1.32975402,2950.4,2950.3,0.00508656]
[1764137150052,2.24224336,2950.4,2950.3,0.00508656]
[1764137150256,0.4899,2949.8,2949.7,0.45967336]
[1764137151357,0.91433848,2950.2,2949.7,0.45967336]
[1764137151557,1.33099512,2950.1,2950.0,0.4564]
[1764137152864,2.2453336,2950.1,2949.7,0.00327336]
[1764137153064,0.4899,2949.8,2949.7,0.45967336]
[1764137153564,1.3306086,2949.8,2949.7,0.45967336]
[1764137153762,0.8407086,2949.8,2949.7,0.45967336]
[1764137154062,0.4899,2949.8,2949.7,0.00327336]
[1764137154258,1.3306086,2949.8,2949.7,0.00327336]
[1764137157865,0.8407086,2949.8,2949.7,0.45967336]
[1764137158071,1.40423848,2950.2,2950.1,0.4564]
[1764137158460,2.24443023,2950.2,2950.1,0.4564]
[1764137158668,0.4899,2949.8,2949.7,0.45967336]
[1764137160478,1.13368225,2950.1,2950.0,0.7291]
[1764137160777,1.97370104,2950.1,2950.0,0.7291]
[1764137160966,1.32991879,2950.1,2950.0,0.7291]
[1764137161165,1.32991879,2950.1,2949.7,0.00327336]
[1764137161166,0.4899,2950.1,2949.7,0.00327336]
[1764137161471,0.4899,2950.1,2950.0,0.4564]
[1764137161881,1.3059429,2950.1,2950.0,0.7356]
[1764137162074,0.4659,2950.1,2950.0,0.7356]
[1764137163789,0.4659,2949.8,2949.7,0.00327336]
[1764137163986,1.94981431,2949.8,2949.7,0.00327336]
[1764137164184,0.91433848,2950.1,2949.7,0.00327336]
[1764137164185,0.4659,2950.1,2949.7,0.00327336]
[1764137164380,0.4659,2949.8,2949.7,0.47707336]
[1764137164581,0.4659,2949.8,2949.7,0.00327336]
[1764137164887,1.30601733,2949.8,2949.7,0.47707336]
[1764137165089,1.30601733,2949.8,2949.5,0.28768656]
[1764137165090,0.4839,2949.6,2949.5,0.00508656]
[1764137165286,1.96768928,2949.6,2949.5,0.00508656]
[1764137165492,1.96768928,2949.6,2949.5,0.46358656]
[1764137165788,1.96768928,2949.6,2949.5,0.00508656]
[1764137165983,1.32390703,2949.6,2949.5,0.00508656]
[1764137166186,1.32390703,2949.6,2949.5,0.00768984]
[1764137166492,1.32390703,2949.6,2949.5,0.74878984]
[1764137167188,1.32390703,2949.6,2949.5,0.00768984]
[1764137167389,0.2689,2949.5,2948.8,0.4585]
[1764137167690,0.84000703,2949.4,2948.8,0.4585]
[1764137167988,0.84000703,2949.3,2948.8,0.4585]
[1764137168183,0.4839,2948.9,2948.8,0.4585]
[1764137168387,0.4839,2948.9,2948.8,0.4615692]
[1764137169292,0.64378225,2949.3,2948.8,0.4615692]
[1764137169693,0.2689,2949.5,2948.8,0.4615692]
[1764137169888,0.83920745,2949.4,2948.8,0.4615692]
[1764137170188,0.2689,2949.5,2948.8,0.4615692]
[1764137172195,0.4839,2948.9,2948.8,0.4615692]
[1764137173597,0.4839,2948.9,2948.8,0.0030692]
[1764137173992,0.4839,2948.9,2948.8,0.4615692]
[1764137176200,0.64378225,2949.3,2948.8,0.4615692]
[1764137176400,0.4839,2948.9,2948.8,0.4615692]
[1764137176996,0.4839,2948.9,2948.8,0.0030692]
[1764137177203,0.4839,2948.7,2948.6,0.00508656]
[1764137177698,0.48898656,2948.9,2948.8,0.4585]
[1764137178088,0.4839,2948.7,2948.6,0.46358656]
[1764137178293,0.4839,2948.7,2948.6,0.00905007]
[1764137178801,0.4839,2948.7,2948.6,0.46755007]
[1764137179295,0.4839,2948.7,2948.6,0.00905007]
[1764137179504,1.12768225,2948.7,2948.6,0.00905007]
[1764137181796,0.4839,2948.1,2948.0,0.4585]
[1764137182201,0.2487,2948.5,2948.0,0.7411]
[1764137182609,0.25183374,2948.5,2948.0,0.74892712]
[1764137183909,0.4839,2948.1,2948.0,0.74892712]
[1764137184107,0.25183374,2948.5,2948.0,0.74892712]
[1764137184307,0.00313374,2948.5,2948.4,0.4585]
[1764137185909,0.48703374,2948.5,2948.4,0.4585]
[1764137186708,0.00313374,2948.5,2948.4,0.4585]
[1764137191710,0.48703374,2948.5,2948.0,0.29042712]
[1764137192005,0.4839,2948.1,2948.0,0.74892712]
[1764137192614,0.25183374,2948.5,2948.0,0.74892712]
[1764137192812,0.00313374,2948.5,2948.0,0.74892712]
[1764137193013,0.48703374,2948.5,2948.4,0.4585]
[1764137193817,0.48703374,2948.5,2948.0,0.29042712]
[1764137194018,0.48703374,2948.5,2948.4,0.4585]
[1764137195017,0.00313374,2948.5,2948.4,0.4585]
[1764137198820,0.47583374,2948.5,2948.4,0.4585]
[1764137200416,0.00313374,2948.5,2948.4,0.4585]
[1764137201322,0.47583374,2948.5,2948.4,0.4585]
[1764137202416,0.4727,2948.1,2948.0,0.73902712]
[1764137202623,0.47583374,2948.5,2948.4,0.4486]
[1764137203011,0.00313374,2948.5,2948.4,0.4486]
[1764137204021,13.81136414,2949.5,2949.3,0.4486]
[1764137204022,0.91435583,2949.5,2949.3,0.4486]
[1764137204225,0.84187843,2949.4,2949.3,0.4486]
[1764137204425,2.12045808,2950.0,2949.3,0.4486]
[1764137204726,0.83792847,2949.9,2949.3,0.4486]
[1764137204927,0.83792847,2949.8,2949.3,0.4486]
[1764137205127,1.31062847,2949.7,2949.6,0.4486]
[1764137206320,1.31062847,2949.7,2949.0,0.2849]
[1764137206321,0.4727,2949.6,2949.0,0.2849]
[1764137207728,0.4727,2949.6,2949.5,0.7335]
[1764137208922,0.00836384,2949.9,2949.5,0.7335]
[1764137209226,1.30931421,2949.8,2949.7,0.4486]
[1764137210427,0.4727,2949.8,2949.7,0.4486]
[1764137210930,0.4727,2949.6,2949.5,0.73858656]
[1764137211133,0.00836384,2949.9,2949.5,0.73858656]
[1764137211328,1.30857633,2949.8,2949.7,0.4486]
[1764137211527,0.00836384,2949.9,2949.8,0.4486]
[1764137211834,0.87724923,2950.5,2949.8,0.4486]
[1764137212027,0.83583508,2950.4,2949.8,0.4486]
[1764137212334,0.4727,2950.4,2950.3,0.4486]